bitfinex-derivatives/quotes_SOLF0:USTF0_20251219
["timestamp","ask_amount","ask_price","bid_price","bid_amount"]
[1766152127302,0.05827988,125.87,125.84,3.79346692]
[1766152127508,0.05827988,125.87,125.84,21.69346692]
[1766152127710,17.16,125.9,125.84,21.69346692]
[1766152127907,17.16,125.94,125.86,21.69346692]
[1766152128110,17.16,125.93,125.86,21.69346692]
[1766152128420,17.16,125.93,125.88,3.79346692]
[1766152128613,0.05246451,125.92,125.89,0.05422177]
[1766152136512,17.21246451,125.92,125.86,7.1544]
[1766152137418,17.21246451,125.92,125.85,17.9]
[1766152140611,17.21246451,125.92,125.87,17.9]
[1766152140920,0.05246451,125.92,125.87,17.9]
[1766152141119,17.16,125.96,125.89,17.9]
[1766152141325,17.16,125.96,125.89,25.0528]
[1766152142324,0.05851519,125.94,125.91,0.05416051]
[1766152143013,7.1489,125.97,125.91,17.95416051]
[1766152143014,17.16,125.97,125.91,17.95416051]
[1766152144324,0.05842759,125.95,125.91,17.95416051]
[1766152144622,0.05842759,125.95,125.91,0.05416051]
[1766152147323,0.05842759,125.95,125.91,16.50416051]
[1766152149427,0.95781,125.99,125.92,16.45]
[1766152150321,0.05491688,125.97,125.94,0.06016822]
[1766152150516,0.95781,125.99,125.94,16.51016822]
[1766152151520,0.05588116,125.98,125.94,16.51016822]
[1766152152620,0.05588116,125.98,125.94,23.66016822]
[1766152155128,0.05588116,125.98,125.94,16.51016822]
[1766152156332,0.95781,125.99,125.95,16.45]
[1766152157322,0.05811352,125.98,125.95,16.45]
[1766152161740,17.14811352,125.98,125.94,0.00016822]
[1766152165740,24.29621352,125.98,125.91,17.06]
[1766152165946,24.29621352,125.98,125.89,63.98]
[1766152165947,17.09,125.97,125.89,63.98]
[1766152166842,0.05140109,125.94,125.92,0.05733564]
[1766152170048,17.14140109,125.94,125.89,17.06]
[1766152171151,24.29170109,125.94,125.9,0.05028065]
[1766152171354,0.05033609,125.93,125.87,17.06]
[1766152172364,0.05033609,125.93,125.89,0.05636833]
[1766152173756,7.20133609,125.93,125.89,0.05636833]
[1766152174753,7.20133609,125.93,125.89,16.40636833]
[1766152175454,16.26,125.92,125.89,0.05636833]
[1766152176551,0.05033609,125.93,125.89,0.05636833]
[1766152179659,0.05033609,125.93,125.89,16.40636833]
[1766152180361,16.26,125.96,125.91,16.35]
[1766152181266,0.05706242,125.95,125.92,0.05507182]
[1766152189157,16.31706242,125.95,125.88,16.35]
[1766152190261,16.31706242,125.95,125.9,16.40403785]
[1766152190565,0.05256756,125.94,125.9,16.40403785]
[1766152196780,0.05256756,125.94,125.9,23.55643785]
[1766152196968,0.05256756,125.94,125.91,16.35]
[1766152197979,16.26,125.97,125.92,16.35]
[1766152198881,17.21781,125.99,125.93,16.35]
[1766152199176,17.21781,125.99,125.93,16.40179137]
[1766152199573,24.36521,125.99,125.93,23.55249137]
[1766152199881,16.26,125.98,125.93,7.20249137]
[1766152200082,0.05121656,125.97,125.93,0.05179137]
[1766152200881,16.31121656,125.97,125.93,0.05179137]
[1766152203069,23.45971656,125.97,125.93,0.05179137]
[1766152203669,23.4091,125.96,125.93,0.05179137]
[1766152205672,0.05121656,125.97,125.93,16.51179137]
[1766152206377,0.00121656,125.97,125.93,16.51179137]
[1766152206579,0.00121656,125.97,125.94,23.6101]
[1766152206772,16.3,126.02,125.95,16.46]
[1766152206976,16.3,126.04,125.97,16.46]
[1766152207777,0.0502366,126.02,125.99,0.05810232]
[1766152207980,0.0502366,126.02,125.99,16.51810232]
[1766152208770,0.0502366,126.02,125.99,23.66520232]
[1766152209687,0.0002366,126.02,125.99,23.66520232]
[1766152210684,0.0002366,126.02,125.99,16.51810232]
[1766152210879,0.0002366,126.02,125.99,0.05810232]
[1766152216689,20.09099779,126.02,125.95,16.46]
[1766152216895,20.09076119,126.02,125.95,16.46]
[1766152217802,0.05114073,126.0,125.97,0.05531865]
[1766152225309,0.00114073,126.0,125.97,17.34531865]
[1766152228805,19.65076119,126.04,125.98,17.29]
[1766152229010,15.86,126.06,125.98,21.08076119]
[1766152230112,0.00017834,126.03,126.01,17.34612728]
[1766152231610,17.20298066,126.08,126.01,17.34612728]
[1766152232405,20.98756746,126.08,126.01,17.34612728]
[1766152232604,0.05714441,126.06,126.01,17.34612728]
[1766152234911,20.74173121,126.06,126.01,0.05612728]
[1766152235810,20.6845868,126.04,125.97,16.09]
[1766152236823,0.05146206,126.02,125.99,0.05348736]
[1766152237120,7.19716206,126.02,125.99,0.05348736]
[1766152239417,24.09716206,126.02,125.99,0.05348736]
[1766152244125,16.95146206,126.02,125.99,0.05348736]
[1766152244319,111.1132,126.07,125.99,0.05348736]
[1766152244320,22.02756746,126.08,125.99,19.92807416]
[1766152244522,16.9,126.08,126.02,16.09]
[1766152244728,3.7845868,126.1,126.01,3.7845868]
[1766152244729,16.9,126.1,126.03,16.09]
[1766152244930,16.9,126.1,126.03,19.8745868]
[1766152245318,0.05776945,126.08,126.05,0.06101423]
[1766152245516,0.05776945,126.08,126.05,16.15101423]
[1766152245816,27.8248868,126.12,126.05,16.15101423]
[1766152246922,0.05309996,126.1,126.05,16.15101423]
[1766152247326,0.05309996,126.1,126.06,16.09]
[1766152253040,16.9,126.12,126.06,16.09]
[1766152254033,0.05959211,126.1,126.08,0.05646794]
[1766152256441,16.9,126.14,126.08,16.14646794]
[1766152257439,0.06033922,126.12,126.08,16.14646794]
[1766152262048,16.9,126.17,126.09,16.09]
[1766152262251,16.9,126.2,126.11,16.09]
[1766152262954,7.1361,126.19,126.13,16.09]
[1766152263138,0.05750651,126.17,126.15,0.05319772]
[1766152265866,16.23750651,126.17,126.1,63.05]
[1766152266470,23.3178,126.16,126.1,63.05]
[1766152266863,0.0534053,126.14,126.12,0.05919207]
[1766152267371,0.0534053,126.14,126.08,16.19]
[1766152268573,7.1923053,126.14,126.1,0.05473649]
[1766152269479,0.0534053,126.14,126.1,16.24473649]
[1766152272476,7.14,126.12,126.1,0.05473649]
[1766152272778,7.14,126.12,126.05,16.19]
[1766152273581,0.05467895,126.1,126.07,0.05194359]
[1766152279176,0.05467895,126.1,126.07,16.96194359]
[1766152280778,0.05467895,126.1,126.07,0.05194359]
[1766152286275,15.55,126.15,126.09,24.0515]
[1766152286476,15.55,126.15,126.1,16.91]
[1766152286676,15.55,126.18,126.1,16.91]
[1766152286886,15.55,126.18,126.11,24.0504]
[1766152287279,0.05133756,126.16,126.13,0.05626552]
[1766152293988,15.52133756,126.16,126.07,9.85399382]
[1766152294193,5.90722536,126.11,126.04,7.39524101]
[1766152294389,5.90722536,126.09,126.01,15.72]
[1766152294581,13.04922536,126.09,126.01,15.72]
[1766152294776,111.1031,126.08,126.01,15.72]
[1766152294981,0.05229201,126.06,126.03,0.05525464]
[1766152295193,7.19599201,126.06,126.03,0.05525464]
[1766152295389,111.1283,126.05,125.96,15.72]
[1766152295579,117.05312536,126.03,125.96,15.72]
[1766152295792,117.05312536,126.03,125.91,15.72]
[1766152296384,0.05999365,125.98,125.96,0.05143661]
[1766152296586,0.05442045,125.98,125.96,0.05143661]
[1766152299198,7.1447,126.04,125.96,15.77143661]
[1766152299379,7.1447,126.04,125.96,15.72]
[1766152300183,0.05401146,126.01,125.99,0.06000098]
[1766152306685,157.9993,126.06,125.99,0.06000098]
[1766152306686,7.1434,126.06,125.99,15.78000098]
[1766152306887,116.96185084,126.09,125.99,15.78000098]
[1766152307193,157.9786,126.09,125.99,15.72]
[1766152307586,0.06026222,126.05,126.03,0.05449598]
[1766152311494,111.0626,126.13,126.03,15.77449598]
[1766152311697,116.92135679,126.14,126.03,15.72]
[1766152311893,157.9353,126.14,126.03,15.72]
[1766152312404,0.05946097,126.1,126.07,0.05345331]
[1766152314902,0.05946097,126.1,126.03,15.72]
[1766152315096,116.92715679,126.13,126.03,15.72]
[1766152315097,111.0611,126.13,126.03,15.72]
[1766152315802,0.05740745,126.09,126.07,0.05519334]
[1766152317498,7.1391,126.14,126.07,0.05519334]
[1766152317903,161.70905268,126.15,126.07,0.05519334]
[1766152318102,161.70905268,126.15,126.06,15.72]
[1766152318392,161.70905268,126.15,126.09,0.05919723]
[1766152318598,0.05512766,126.12,126.09,0.05919723]
[1766152321005,0.05512766,126.12,126.05,15.72]
[1766152321607,7.19522766,126.12,126.05,15.72]
[1766152322002,7.19522766,126.12,126.07,0.05837245]
[1766152322812,3.78205268,126.11,126.03,15.72]
[1766152323312,7.1412,126.1,126.03,15.72]
[1766152324007,0.05486945,126.08,126.05,15.7772808]
[1766152324804,7.1401,126.12,126.05,15.7772808]
[1766152325410,50.66205268,126.14,126.06,16.43]
[1766152325808,0.0544172,126.11,126.09,0.00107651]
[1766152328514,111.1024,126.08,126.01,16.43]
[1766152328820,3.78205268,126.06,126.01,16.43]
[1766152329413,0.05591728,126.05,126.02,0.05075984]
[1766152330109,7.1426,126.08,126.02,16.48075984]
[1766152331104,0.05764335,126.06,126.02,16.48075984]
[1766152334009,7.1421,126.09,126.02,16.48075984]
[1766152335018,0.05171399,126.07,126.02,16.48075984]
[1766152335712,0.05171399,126.07,126.03,16.43]
[1766152342721,0.00171399,126.07,126.03,16.43]
[1766152342918,5.86605679,126.13,126.06,16.77]
[1766152343121,157.9141,126.16,126.06,16.77]
[1766152343834,0.05806602,126.12,126.1,0.06094148]
[1766152349750,157.9141,126.16,126.1,16.83094148]
[1766152349751,53.998,126.16,126.1,16.83094148]
[1766152350541,0.05250786,126.14,126.1,16.83094148]
[1766152354346,0.05250786,126.14,126.1,0.06094148]
[1766152354551,3.83232694,126.14,126.1,0.06094148]
[1766152355554,10.97122694,126.14,126.1,0.06094148]
[1766152357249,3.83232694,126.14,126.1,0.06094148]
[1766152357455,0.05250786,126.14,126.1,16.27094148]
[1766152357948,0.05250786,126.14,126.1,0.06094148]
[1766152359555,7.19140786,126.14,126.1,0.06094148]
[1766152388968,0.05250786,126.14,126.1,0.06094148]
[1766152389773,7.19140786,126.14,126.1,0.06094148]
[1766152393475,0.05250786,126.14,126.06,17.26]
[1766152393670,111.0434,126.15,126.07,17.26]
[1766152393868,53.9992,126.14,126.08,17.26]
[1766152394266,53.9992,126.14,126.1,0.05264814]
[1766152394468,0.05431258,126.12,126.1,0.05264814]
[1766152395269,0.05431258,126.12,126.1,17.31264814]
[1766152395270,0.00431258,126.12,126.1,17.31264814]
[1766152396974,0.00431258,126.12,126.1,0.00264814]
[1766152398278,0.00431258,126.12,126.06,17.26]
[1766152398676,7.14431258,126.12,126.06,17.26]
[1766152399276,7.14431258,126.12,126.08,0.06064155]
[1766152399680,7.1406,126.11,126.08,0.06064155]
[1766152400675,7.1406,126.11,126.08,0.00064155]
[1766152401977,7.1411,126.1,126.08,0.00064155]
[1766152402183,163.84051512,126.12,126.05,15.8]
[1766152402379,163.83620254,126.12,126.05,15.8]
[1766152403085,0.05584114,126.1,126.07,0.05299924]
[1766152410582,7.19704114,126.1,126.07,0.00299924]
[1766152410889,0.05584114,126.1,126.07,0.00299924]
[1766152411096,0.05584114,126.1,126.03,15.8]
[1766152412197,0.05584114,126.1,126.05,0.0570179]
[1766152412598,7.1418,126.09,126.05,0.0570179]
[1766152413893,7.1423,126.08,126.03,15.8]
[1766152414090,116.99540254,126.1,126.01,17.49]
[1766152414294,5.90720254,126.08,126.01,17.49]
[1766152414493,46.86,126.07,126.01,17.49]
[1766152414992,0.0578944,126.05,126.03,0.05910448]
[1766152415602,5.90720254,126.12,126.03,17.54910448]
[1766152415900,46.86,126.11,126.03,17.49]
[1766152416100,111.0482,126.15,126.04,17.49]
[1766152416292,46.86,126.14,126.04,17.49]
[1766152416492,163.81990254,126.14,126.04,17.49]
[1766152416699,0.05072866,126.1,126.08,0.05081387]
[1766152427407,7.1417,126.09,126.04,17.49]
[1766152428308,0.05488999,126.08,126.05,0.00475262]
[1766152428510,116.99350254,126.1,126.02,17.49]
[1766152428711,46.86,126.09,125.99,7.1468]
[1766152428916,157.9572,126.09,126.0,17.49]
[1766152429515,0.05473708,126.06,126.03,0.05486134]
[1766152431617,0.00473708,126.06,126.03,17.54486134]
[1766152433018,54.0009,126.11,126.03,17.54486134]
[1766152433221,54.0009,126.11,126.03,17.49]
[1766152433513,7.1413,126.1,126.04,17.49]
[1766152433719,46.86,126.11,126.04,17.49]
[1766152433921,0.05617743,126.09,125.99,17.49]
[1766152434217,5.90720254,126.1,125.99,17.49]
[1766152434919,0.05521468,126.06,126.03,0.05520869]
[1766152440818,114.86249404,126.11,126.03,0.05520869]
[1766152441017,3.78489404,126.07,125.99,17.49]
[1766152441222,3.78489404,126.07,125.99,21.27489404]
[1766152441223,7.1429,126.07,125.99,21.27489404]
[1766152441919,161.75889404,126.09,125.99,21.27489404]
[1766152442126,0.06016363,126.05,126.03,0.05865917]
[1766152447631,7.20406363,126.05,126.0,17.49]
[1766152448727,7.1445,126.04,126.01,0.05261199]
[1766152448934,7.19756347,126.04,126.01,0.05261199]
[1766152450326,7.1451,126.03,125.98,15.95]
[1766152450527,10.93035745,126.03,125.98,15.95]
[1766152451337,10.93035745,126.03,125.99,0.05404898]
[1766152453834,7.1451,126.03,125.99,0.05404898]
[1766152454835,0.05306347,126.04,125.99,16.00404898]
[1766152455232,7.19756347,126.04,125.99,16.00404898]
[1766152455533,0.05306347,126.04,125.99,16.00404898]
[1766152455929,0.05306347,126.04,125.99,0.05404898]
[1766152456233,0.05306347,126.04,125.99,0.00404898]
[1766152456626,7.1457,126.02,125.99,0.00404898]
[1766152468243,10.98312092,126.04,125.99,0.00404898]
[1766152468444,0.05306347,126.04,125.99,16.49404898]
[1766152472546,7.19766347,126.04,125.99,16.49404898]
[1766152482049,3.78525745,126.09,126.01,17.38]
[1766152482253,3.78525745,126.1,126.01,17.38]
[1766152483048,0.05456382,126.07,126.04,0.05424245]
[1766152485857,0.05456382,126.07,126.04,17.43424245]
[1766152487349,7.1419,126.09,126.04,17.43424245]
[1766152487551,7.141,126.11,126.04,17.43424245]
[1766152488363,0.05287722,126.09,126.04,17.43424245]
[1766152494267,7.19457722,126.09,126.04,17.43424245]
[1766152505870,7.1422,126.08,126.04,17.43424245]
[1766152508273,0.05287722,126.09,126.04,17.43424245]
[1766152509565,7.19457722,126.09,126.04,17.43424245]
[1766152510377,7.1422,126.08,126.04,17.43424245]
[1766152511081,0.05287722,126.09,126.04,17.43424245]
[1766152511574,0.00287722,126.09,126.04,17.43424245]
[1766152511978,0.00287722,126.09,126.04,24.57864245]
[1766152512381,0.00287722,126.09,126.04,17.43424245]
[1766152513779,7.14457722,126.09,126.04,17.43424245]
[1766152522886,0.00287722,126.09,126.04,17.43424245]
[1766152523090,111.1106,126.07,125.97,7.38762147]
[1766152523990,0.05654634,126.03,126.01,0.06111064]
[1766152524988,7.20164634,126.03,126.01,0.06111064]
[1766152525191,0.05654634,126.03,126.01,0.06111064]
[1766152527795,8.24654634,126.03,125.94,14.53722147]
[1766152527999,8.19,126.03,125.94,14.53722147]
[1766152528190,7.1463,126.01,125.94,14.53722147]
[1766152528391,7.1463,126.01,125.93,54.26762147]
[1766152528592,15.35,126.08,125.97,117.10969971]
[1766152528900,0.00414204,126.04,126.01,0.05900653]
[1766152529702,15.35,126.08,126.02,16.43]
[1766152530602,22.4926,126.08,126.02,16.43]
[1766152530802,0.0541055,126.06,126.04,0.0593215]
[1766152531402,0.0541055,126.06,125.99,16.43]
[1766152531602,126.4561,126.08,125.99,16.43]
[1766152532306,0.05712315,126.05,126.02,0.05361921]
[1766152536604,7.20122315,126.05,126.02,0.05361921]
[1766152536797,69.70122315,126.05,125.99,17.35]
[1766152537699,15.59,126.04,125.97,17.35]
[1766152538007,0.05695838,126.02,125.99,0.05955951]
[1766152539716,7.148,125.98,125.93,17.35]
[1766152540504,7.1487,125.97,125.93,17.35]
[1766152540816,0.05117055,125.96,125.94,0.06056267]
[1766152548014,7.147,126.0,125.94,17.41056267]
[1766152548214,46.9,125.99,125.94,17.41056267]
[1766152549225,0.0531465,125.98,125.94,17.41056267]
[1766152555425,7.2013465,125.98,125.94,17.41056267]
[1766152555921,23.1013465,125.98,125.94,0.06056267]
[1766152560313,70.0013465,125.98,125.94,0.06056267]
[1766152563726,0.0531465,125.98,125.94,17.41056267]
[1766152565724,0.0031465,125.98,125.94,17.41056267]
[1766152566627,16.1131465,125.98,125.94,0.06056267]
[1766152567632,7.1485,125.97,125.94,0.06056267]
[1766152568928,131.09217316,125.97,125.91,16.06]
[1766152569128,62.96,125.96,125.91,16.06]
[1766152569926,0.0548332,125.95,125.92,0.05920936]
[1766152570626,7.1502,125.94,125.92,0.05920936]
[1766152576635,7.1508,125.93,125.88,16.06]
[1766152576830,10.94077316,125.93,125.88,16.06]
[1766152577736,7.20642745,125.92,125.89,0.05205124]
[1766152578337,54.12642745,125.92,125.89,0.05205124]
[1766152581141,15.97,125.9,125.83,17.55]
[1766152581441,3.78997316,125.91,125.83,17.55]
[1766152581640,50.70997316,125.91,125.83,17.55]
[1766152582032,0.05197875,125.88,125.86,0.05460319]
[1766152583233,54.0728,125.9,125.86,0.05460319]
[1766152583641,46.92,125.91,125.86,17.60460319]
[1766152584432,0.055298,125.9,125.86,17.60460319]
[1766152592348,26.89485281,125.94,125.87,17.55]
[1766152592556,19.74425281,125.94,125.87,17.55]
[1766152593346,0.05881166,125.92,125.89,0.06076337]
[1766152596660,3.85306447,125.92,125.87,17.55]
[1766152597764,3.85306447,125.92,125.88,0.05695422]
[1766152598866,11.00436447,125.92,125.88,0.05695422]
[1766152600571,26.93436447,125.92,125.88,0.05695422]
[1766152602863,23.14011166,125.92,125.88,0.05695422]
[1766152603063,26.93436447,125.92,125.88,0.05695422]
[1766152608059,19.65425281,125.9,125.85,17.38]
[1766152608866,15.86,125.89,125.83,17.38]
[1766152609069,15.91057069,125.87,125.81,17.38]
[1766152610566,15.91057069,125.87,125.82,17.38]
[1766152610768,0.05539126,125.86,125.82,17.38]
[1766152611161,0.05539126,125.86,125.82,24.5369]
[1766152613462,0.05539126,125.86,125.83,17.38]
[1766152613667,15.81,125.89,125.83,24.5363]
[1766152613861,3.79425281,125.9,125.84,17.38]
[1766152614067,19.65425281,125.91,125.84,17.38]
[1766152614571,0.05377929,125.89,125.86,0.05261587]
[1766152614767,0.05377929,125.89,125.82,3.79425281]
[1766152614768,19.7080321,125.89,125.82,17.38]
[1766152615567,15.81,125.88,125.82,17.38]
[1766152615777,0.05105963,125.86,125.82,17.38]
[1766152616361,15.86105963,125.86,125.8,46.94]
[1766152616569,15.86105963,125.86,125.8,64.32]
[1766152616965,15.86105963,125.86,125.81,17.38]
[1766152617368,15.86105963,125.86,125.8,46.94]
[1766152617369,14.43,125.83,125.76,17.38]
[1766152617579,111.35415963,125.86,125.77,17.38]
[1766152617580,18.22425281,125.85,125.77,17.38]
[1766152617882,14.43,125.85,125.79,17.38]
[1766152618072,14.43,125.85,125.79,21.17425281]
[1766152618276,14.48,125.87,125.79,21.17425281]
[1766152618671,0.05354471,125.84,125.82,0.0534665]
[1766152624576,14.49,125.88,125.82,16.2434665]
[1766152624769,14.54,125.9,125.83,16.19]
[1766152625873,0.05258044,125.88,125.85,0.05867497]
[1766152626076,14.54,125.92,125.85,16.24867497]
[1766152626376,14.54,125.92,125.85,16.19]
[1766152626575,117.13936039,125.97,125.87,16.19]
[1766152626576,14.59,125.94,125.87,16.19]
[1766152626763,14.59,125.96,125.87,16.19]
[1766152626969,0.05836112,125.93,125.9,0.06091929]
[1766152635382,0.05836112,125.93,125.86,7.1544]
[1766152635383,14.53,125.92,125.86,16.19]
[1766152635576,14.53,125.92,125.83,16.19]
[1766152636476,0.05655701,125.89,125.86,0.05713051]
[1766152643684,14.52,125.92,125.86,16.06713051]
[1766152643988,61.52,125.94,125.86,16.06713051]
[1766152644184,61.52,125.94,125.86,16.01]
[1766152644775,0.06041976,125.91,125.89,0.051196]
[1766152648986,14.59041976,125.91,125.84,16.01]
[1766152649185,14.53,125.91,125.84,16.01]
[1766152650091,0.05979973,125.89,125.86,0.05806122]
[1766152650886,0.05979973,125.89,125.84,16.01]
[1766152651188,21.74309973,125.89,125.84,16.01]
[1766152651386,14.53,125.88,125.82,16.01]
[1766152651986,0.06111478,125.86,125.84,0.05128499]
[1766152652389,0.06111478,125.86,125.82,16.01]
[1766152653194,12.61989207,125.9,125.83,16.01]
[1766152653395,21.7428,125.9,125.83,16.01]
[1766152653785,14.59,125.89,125.83,16.01]
[1766152653982,21.7431,125.89,125.83,16.01]
[1766152654295,0.0573146,125.87,125.85,0.05174008]
[1766152655290,0.0573146,125.87,125.85,0.00174008]
[1766152655489,0.0573146,125.87,125.81,16.2]
[1766152657406,7.2117146,125.87,125.81,16.2]
[1766152659604,21.7917146,125.87,125.81,16.2]
[1766152663204,0.0573146,125.87,125.81,16.2]
[1766152664101,0.0573146,125.87,125.81,23.3574]
[1766152664301,0.0573146,125.87,125.82,16.2]
[1766152669821,12.61929207,125.91,125.83,16.2]
[1766152670118,7.1522,125.91,125.83,16.2]
[1766152670715,21.7822,125.91,125.83,23.3562]
[1766152670917,0.05185425,125.88,125.86,0.05646342]
[1766152672612,0.05185425,125.88,125.84,16.2]
[1766152684626,5.46974241,125.92,125.84,16.2]
[1766152684819,14.65,125.93,125.85,3.79571254]
[1766152685122,14.65,125.93,125.86,16.48]
[1766152685432,7.1519,125.91,125.86,16.48]
[1766152685732,0.05740742,125.9,125.87,0.06027841]
[1766152689035,5.46974241,125.94,125.87,16.54027841]
[1766152689223,24.02531072,125.96,125.89,16.48]
[1766152689532,18.50571254,125.97,125.89,16.48]
[1766152690037,0.05442761,125.94,125.92,0.0576264]
[1766152694735,70.51763458,125.98,125.92,16.5376264]
[1766152695136,94.8668962,125.98,125.92,16.5376264]
[1766152695738,0.05666308,125.96,125.92,16.5376264]
[1766152696835,48.65933458,125.98,125.92,16.5376264]
[1766152697140,14.76,126.0,125.92,20.33333894]
[1766152697141,68.847,126.0,125.92,20.33333894]
[1766152697336,68.847,126.0,125.92,20.27571254]
[1766152697538,54.087,126.0,125.92,20.27571254]
[1766152698032,0.00476161,125.97,125.95,0.05679993]
[1766152699335,0.00476161,125.97,125.95,17.44679993]
[1766152701440,0.00476161,125.97,125.95,0.05679993]
[1766152701939,7.1458,126.02,125.96,17.39]
[1766152702928,0.05764733,126.0,125.98,0.0554036]
[1766152705937,14.89,126.03,125.98,0.0554036]
[1766152706137,7.1449,126.04,125.98,17.4454036]
[1766152706639,18.74571254,126.04,125.98,17.4454036]
[1766152706945,16.43,126.01,125.9,158.175]
[1766152707239,20.22571254,126.01,125.91,3.79571254]
[1766152707542,23.5776,125.99,125.91,3.79571254]
[1766152707842,23.5776,125.99,125.94,0.05979979]
[1766152707843,0.05052694,125.96,125.94,0.05979979]
[1766152712948,0.00052694,125.96,125.94,0.05979979]
[1766152713639,10.94281254,126.0,125.94,17.44979979]
[1766152714145,28.50281254,126.0,125.94,17.44979979]
[1766152714743,0.05765412,125.98,125.94,17.44979979]
[1766152717345,0.05765412,125.98,125.94,0.05979979]
[1766152719853,21.41336666,125.98,125.94,0.05979979]
[1766152721248,21.35571254,125.94,125.84,21.43571254]
[1766152722151,0.05250024,125.9,125.88,0.05523373]
[1766152722348,0.00250024,125.9,125.88,0.05523373]
[1766152722549,17.56,125.96,125.88,17.69523373]
[1766152722754,17.56,125.96,125.88,17.64]
[1766152722755,64.48,125.96,125.88,17.64]
[1766152723555,0.05073303,125.93,125.91,0.05946951]
[1766152729161,17.61073303,125.93,125.87,17.64]
[1766152729860,24.76163303,125.93,125.87,17.64]
[1766152730059,24.76163303,125.93,125.89,0.05355285]
[1766152731362,7.20163303,125.93,125.89,0.05355285]
[1766152732560,0.05073303,125.93,125.89,17.69355285]
[1766152755565,0.00073303,125.93,125.89,17.69355285]
[1766152762074,17.80073303,125.93,125.89,0.05355285]
[1766152763685,24.95153303,125.93,125.89,0.05355285]
[1766152765980,17.8,125.91,125.83,25.47764001]
[1766152766174,17.8,125.91,125.83,18.12363]
[1766152766983,0.05345813,125.88,125.86,17.03108304]
[1766152767184,17.8,125.91,125.86,17.03108304]
[1766152768087,0.05637121,125.9,125.86,17.03108304]
[1766152772585,7.20897121,125.9,125.86,17.03108304]
[1766152772783,17.85637121,125.9,125.83,1.15363]
[1766152773377,17.8,125.95,125.85,111.3044]
[1766152773590,17.8,125.95,125.86,111.2942]
[1766152773781,17.8,125.95,125.86,117.22046757]
[1766152774288,17.8,125.95,125.86,164.16046757]
[1766152774488,0.00245498,125.92,125.89,0.06009634]
[1766152774688,0.00245498,125.92,125.9,16.46]
[1766152774890,18.03,125.97,125.9,16.46]
[1766152775085,25.1788,125.97,125.9,7.1523]
[1766152775291,1.66519181,125.98,125.91,16.46]
[1766152775491,18.03,126.01,125.91,16.46]
[1766152775897,0.05051862,125.97,125.95,0.05498901]
[1766152779894,18.08051862,125.97,125.91,16.46]
[1766152780688,25.22911862,125.97,125.91,16.46]
[1766152780889,25.22911862,125.97,125.93,0.05419512]
[1766152785613,18.03,125.96,125.93,0.05419512]
[1766152801929,116.62587933,126.01,125.93,16.51419512]
[1766152801930,70.41017933,126.01,125.93,16.51419512]
[1766152802132,64.95,126.01,125.93,16.46]
[1766152803121,64.95,126.01,125.96,0.05416616]
[1766152803122,0.05544607,125.98,125.96,0.05416616]
[1766152803323,64.95,126.01,125.96,16.51416616]
[1766152804328,0.05574141,126.0,125.96,16.51416616]
[1766152805129,16.88,126.03,125.96,16.51416616]
[1766152806132,0.05782639,126.01,125.96,16.51416616]
[1766152806724,0.05782639,126.01,125.97,17.72]
[1766152808833,16.93782639,126.01,125.96,0.05416616]
[1766152809431,24.08402639,126.01,125.96,0.05416616]
[1766152810429,24.0269,126.0,125.96,0.05416616]
[1766152810628,16.88,125.99,125.96,0.05416616]
[1766152810834,16.88,125.99,125.92,46.92]
[1766152810835,20.66821318,125.99,125.89,3.78821318]
[1766152811634,7.1486,125.97,125.9,7.1523]
[1766152812027,0.05770195,125.95,125.92,0.05407194]
[1766152823748,18.15,125.93,125.87,17.4]
[1766152823946,21.93821318,125.93,125.85,17.4]
[1766152824850,18.15,125.95,125.88,17.45938667]
[1766152825245,21.93821318,125.95,125.88,0.05938667]
[1766152825551,25.3008,125.93,125.88,0.05938667]
[1766152825945,0.05213048,125.92,125.88,0.05938667]
[1766152829753,25.35353048,125.92,125.88,0.05938667]
[1766152830853,18.20213048,125.92,125.88,0.05938667]
[1766152835054,25.35353048,125.92,125.88,0.05938667]
[1766152835855,25.3619,125.91,125.88,0.05938667]
[1766152836156,18.21,125.9,125.85,17.31]
[1766152836353,25.3631,125.89,125.83,18.46363]